[Event "Titled Tuesday Blitz December 27 Early 2022"]
[White "Roque Sola, Jose Luis"]
[Black "Rangel, Daniel"]
[WhiteFideId "5120390"]
[BlackFideId "2124475"]
[WhiteElo "2217"]
[BlackElo "2207"]
[Result "0-1"]
[Round "02"]
[TimeControl "180+2"]
[Date "2022.12.27"]
[WhiteClock "0:00:16"]
[BlackClock "0:02:02"]

1. c4 {[%clk 0:02:59]}  b6 {[%clk 0:02:52]} 2. Nc3 {[%clk 0:02:53]}  Bb7 {[%clk 0:02:53]} 3. Nf3 {[%clk 0:02:53]}  Nf6 {[%clk 0:02:54]} 4. d3 {[%clk 0:02:50]}  d5 {[%clk 0:02:53]} 5. cxd5 {[%clk 0:02:49]}  Nxd5 {[%clk 0:02:54]} 6. e4 {[%clk 0:02:34]}  Nf6 {[%clk 0:02:49]} 7. Be2 {[%clk 0:02:34]}  Nbd7 {[%clk 0:02:48]} 8. O-O {[%clk 0:02:34]}  e5 {[%clk 0:02:48]} 9. Qa4 {[%clk 0:02:17]}  Bd6 {[%clk 0:02:46]} 10. Nb5 {[%clk 0:02:10]}  O-O {[%clk 0:02:46]} 11. Nxd6 {[%clk 0:02:09]}  cxd6 {[%clk 0:02:47]} 12. Bd2 {[%clk 0:02:06]}  Nc5 {[%clk 0:02:46]} 13. Qa3 {[%clk 0:02:02]}  a5 {[%clk 0:02:45]} 14. b4 {[%clk 0:01:46]}  axb4 {[%clk 0:02:44]} 15. Qxb4 {[%clk 0:01:47]}  Nfd7 {[%clk 0:02:38]} 16. a4 {[%clk 0:01:30]}  Bc6 {[%clk 0:02:33]} 17. a5 {[%clk 0:01:24]}  bxa5 {[%clk 0:02:28]} 18. Rxa5 {[%clk 0:01:23]}  Rxa5 {[%clk 0:02:27]} 19. Qxa5 {[%clk 0:01:24]}  Qxa5 {[%clk 0:02:27]} 20. Bxa5 {[%clk 0:01:25]}  Bb5 {[%clk 0:02:28]} 21. Rd1 {[%clk 0:01:21]}  Ra8 {[%clk 0:02:28]} 22. Bb4 {[%clk 0:00:54]}  Ra4 {[%clk 0:02:21]} 23. Bxc5 {[%clk 0:00:52]}  Nxc5 {[%clk 0:02:22]} 24. Kf1 {[%clk 0:00:41]}  Kf8 {[%clk 0:02:13]} 25. Nh4 {[%clk 0:00:19]}  g6 {[%clk 0:02:08]} 26. Nf3 {[%clk 0:00:19]}  Ra2 {[%clk 0:02:05]} 27. Ne1 {[%clk 0:00:19]}  Nxe4 {[%clk 0:02:01]} 28. Rb1 {[%clk 0:00:16]}  Nd2+ {[%clk 0:02:02]} 0-1


[Site "https://www.chess.com"]

[Event "Titled Tuesday Blitz December 27 Early 2022"]
[White "Rosh Jain"]
[Black "Poeta, Caio Medeiros"]
[WhiteFideId "25789465"]
[BlackFideId "2142660"]
[WhiteElo "2248"]
[BlackElo "2088"]
[Result "0-1"]
[Round "02"]
[TimeControl "180+2"]
[Date "2022.12.27"]
[WhiteClock "0:00:01"]
[BlackClock "0:00:05"]

1. e4 {[%clk 0:02:59]}  c6 {[%clk 0:02:59]} 2. Nc3 {[%clk 0:02:59]}  d5 {[%clk 0:03:00]} 3. Nf3 {[%clk 0:02:59]}  Bg4 {[%clk 0:02:58]} 4. h3 {[%clk 0:02:57]}  Bh5 {[%clk 0:02:58]} 5. exd5 {[%clk 0:02:56]}  cxd5 {[%clk 0:02:58]} 6. Bb5+ {[%clk 0:02:56]}  Nc6 {[%clk 0:02:57]} 7. g4 {[%clk 0:02:55]}  Bg6 {[%clk 0:02:57]} 8. Ne5 {[%clk 0:02:55]}  Rc8 {[%clk 0:02:58]} 9. d4 {[%clk 0:02:50]}  e6 {[%clk 0:02:58]} 10. Be3 {[%clk 0:02:47]}  Bd6 {[%clk 0:02:55]} 11. Nxg6 {[%clk 0:02:47]}  hxg6 {[%clk 0:02:54]} 12. Qd2 {[%clk 0:02:47]}  a6 {[%clk 0:02:44]} 13. Bxc6+ {[%clk 0:02:47]}  Rxc6 {[%clk 0:02:44]} 14. a3 {[%clk 0:02:47]}  Ne7 {[%clk 0:02:43]} 15. Bf4 {[%clk 0:02:46]}  b5 {[%clk 0:02:41]} 16. Bxd6 {[%clk 0:02:45]}  Qxd6 {[%clk 0:02:42]} 17. Na2 {[%clk 0:02:42]}  Nc8 {[%clk 0:02:36]} 18. Nb4 {[%clk 0:02:41]}  Rc7 {[%clk 0:02:35]} 19. Nd3 {[%clk 0:02:39]}  Nb6 {[%clk 0:02:26]} 20. b3 {[%clk 0:02:35]}  Nd7 {[%clk 0:02:21]} 21. a4 {[%clk 0:02:33]}  O-O {[%clk 0:02:05]} 22. h4 {[%clk 0:02:30]}  Rfc8 {[%clk 0:02:04]} 23. Ra2 {[%clk 0:02:21]}  Nf6 {[%clk 0:02:01]} 24. f3 {[%clk 0:02:21]}  Qg3+ {[%clk 0:01:58]} 25. Ke2 {[%clk 0:02:10]}  Qg2+ {[%clk 0:01:57]} 26. Nf2 {[%clk 0:02:10]}  Rc3 {[%clk 0:01:51]} 27. Rh3 {[%clk 0:02:01]}  Nxg4 {[%clk 0:01:33]} 28. fxg4 {[%clk 0:01:50]}  Rxh3 {[%clk 0:01:33]} 29. axb5 {[%clk 0:01:47]}  axb5 {[%clk 0:01:31]} 30. Qf4 {[%clk 0:01:41]}  Rhc3 {[%clk 0:01:08]} 31. Ra7 {[%clk 0:01:37]}  Rxc2+ {[%clk 0:01:03]} 32. Ke1 {[%clk 0:01:36]}  Rc1+ {[%clk 0:00:34]} 33. Kd2 {[%clk 0:01:33]}  R8c2+ {[%clk 0:00:34]} 34. Ke3 {[%clk 0:01:32]}  Qxf2+ {[%clk 0:00:18]} 35. Qxf2 {[%clk 0:01:31]}  Rxf2 {[%clk 0:00:18]} 36. Kxf2 {[%clk 0:01:32]}  Rc3 {[%clk 0:00:19]} 37. Ra8+ {[%clk 0:01:23]}  Kh7 {[%clk 0:00:19]} 38. g5 {[%clk 0:01:20]}  Rxb3 {[%clk 0:00:18]} 39. Rf8 {[%clk 0:01:18]}  Rh3 {[%clk 0:00:17]} 40. Rxf7 {[%clk 0:01:17]}  Rxh4 {[%clk 0:00:18]} 41. Re7 {[%clk 0:01:16]}  Rxd4 {[%clk 0:00:17]} 42. Rxe6 {[%clk 0:01:16]}  b4 {[%clk 0:00:17]} 43. Rb6 {[%clk 0:01:14]}  Kg8 {[%clk 0:00:16]} 44. Rb5 {[%clk 0:01:10]}  Kf7 {[%clk 0:00:16]} 45. Ke3 {[%clk 0:01:09]}  Rd1 {[%clk 0:00:09]} 46. Rxb4 {[%clk 0:01:09]}  Ke6 {[%clk 0:00:09]} 47. Rb7 {[%clk 0:00:57]}  Kf5 {[%clk 0:00:09]} 48. Rxg7 {[%clk 0:00:57]}  Kxg5 {[%clk 0:00:09]} 49. Rh7 {[%clk 0:00:53]}  Kf5 {[%clk 0:00:08]} 50. Rh2 {[%clk 0:00:49]}  g5 {[%clk 0:00:07]} 51. Rg2 {[%clk 0:00:47]}  g4 {[%clk 0:00:07]} 52. Rf2+ {[%clk 0:00:47]}  Kg5 {[%clk 0:00:07]} 53. Rf8 {[%clk 0:00:45]}  Ra1 {[%clk 0:00:07]} 54. Kf2 {[%clk 0:00:41]}  Ra2+ {[%clk 0:00:05]} 55. Kg3 {[%clk 0:00:37]}  Ra3+ {[%clk 0:00:06]} 56. Kg2 {[%clk 0:00:37]}  d4 {[%clk 0:00:07]} 57. Rd8 {[%clk 0:00:32]}  Ra4 {[%clk 0:00:07]} 58. Kg3 {[%clk 0:00:30]}  Ra3+ {[%clk 0:00:07]} 59. Kg2 {[%clk 0:00:30]}  Rd3 {[%clk 0:00:08]} 60. Rf8 {[%clk 0:00:19]}  Kg6 {[%clk 0:00:07]} 61. Rf4 {[%clk 0:00:17]}  Kg5 {[%clk 0:00:07]} 62. Rf8 {[%clk 0:00:16]}  g3 {[%clk 0:00:07]} 63. Rf7 {[%clk 0:00:13]}  Re3 {[%clk 0:00:07]} 64. Rd7 {[%clk 0:00:10]}  d3 {[%clk 0:00:07]} 65. Rd5+ {[%clk 0:00:10]}  Kg4 {[%clk 0:00:08]} 66. Rd4+ {[%clk 0:00:10]}  Kf5 {[%clk 0:00:08]} 67. Rd8 {[%clk 0:00:06]}  Kf4 {[%clk 0:00:08]} 68. Rf8+ {[%clk 0:00:03]}  Ke4 {[%clk 0:00:08]} 69. Re8+ {[%clk 0:00:04]}  Kd4 {[%clk 0:00:09]} 70. Rd8+ {[%clk 0:00:02]}  Kc3 {[%clk 0:00:09]} 71. Rc8+ {[%clk 0:00:03]}  Kd2 {[%clk 0:00:10]} 72. Rd8 {[%clk 0:00:02]}  Ke2 {[%clk 0:00:10]} 73. Rc8 {[%clk 0:00:01]}  d2 {[%clk 0:00:10]} 74. Rc2 {[%clk 0:00:01]}  Ke1 {[%clk 0:00:10]} 75. Rxd2 {[%clk 0:00:01]}  Kxd2 {[%clk 0:00:10]} 76. Kg1 {[%clk 0:00:02]}  Ke2 {[%clk 0:00:10]} 77. Kh1 {[%clk 0:00:01]}  g2+ {[%clk 0:00:09]} 78. Kg1 {[%clk 0:00:01]}  Kf3 {[%clk 0:00:03]} 79. Kh2 {[%clk 0:00:01]}  Re8 {[%clk 0:00:03]} 80. Kg1 {[%clk 0:00:01]}  Rf8 {[%clk 0:00:04]} 81. Kh2 {[%clk 0:00:01]}  Rh8+ {[%clk 0:00:04]} 82. Kg1 {[%clk 0:00:01]}  Rh1# {[%clk 0:00:05]} 0-1


[Site "https://www.chess.com"]

[Event "Titled Tuesday Blitz December 27 Early 2022"]
[White "Rustemov, Alexander"]
[Black "Tomb, Maroun"]
[WhiteFideId "4119002"]
[BlackFideId "5300398"]
[WhiteElo "2525"]
[BlackElo "2090"]
[Result "1-0"]
[Round "02"]
[TimeControl "180+2"]
[Date "2022.12.27"]
[WhiteClock "0:00:09"]
[BlackClock "0:00:05"]

1. d4 {[%clk 0:03:00]}  d6 {[%clk 0:02:59]} 2. e4 {[%clk 0:02:59]}  Nf6 {[%clk 0:02:59]} 3. f3 {[%clk 0:02:59]}  e5 {[%clk 0:03:00]} 4. Ne2 {[%clk 0:02:58]}  c6 {[%clk 0:02:59]} 5. c4 {[%clk 0:02:57]}  a6 {[%clk 0:02:49]} 6. Nbc3 {[%clk 0:02:57]}  b5 {[%clk 0:02:47]} 7. Be3 {[%clk 0:02:45]}  Nbd7 {[%clk 0:02:41]} 8. Ng3 {[%clk 0:02:36]}  g6 {[%clk 0:02:38]} 9. Be2 {[%clk 0:02:29]}  h5 {[%clk 0:02:36]} 10. O-O {[%clk 0:02:28]}  Be7 {[%clk 0:02:22]} 11. Qd2 {[%clk 0:02:26]}  Bb7 {[%clk 0:02:17]} 12. d5 {[%clk 0:02:23]}  bxc4 {[%clk 0:02:09]} 13. Bxc4 {[%clk 0:02:21]}  Nb6 {[%clk 0:02:00]} 14. Bb3 {[%clk 0:02:07]}  c5 {[%clk 0:01:53]} 15. Na4 {[%clk 0:01:43]}  O-O {[%clk 0:01:41]} 16. Ne2 {[%clk 0:01:28]}  a5 {[%clk 0:01:37]} 17. Nxb6 {[%clk 0:01:26]}  Qxb6 {[%clk 0:01:36]} 18. Bc4 {[%clk 0:01:26]}  Nd7 {[%clk 0:01:29]} 19. Nc3 {[%clk 0:01:25]}  f5 {[%clk 0:01:21]} 20. Bg5 {[%clk 0:01:14]}  Qd8 {[%clk 0:01:18]} 21. Bxe7 {[%clk 0:01:12]}  Qxe7 {[%clk 0:01:19]} 22. Qh6 {[%clk 0:01:12]}  Qg7 {[%clk 0:01:19]} 23. Qxg7+ {[%clk 0:01:11]}  Kxg7 {[%clk 0:01:20]} 24. Nb5 {[%clk 0:01:11]}  Ra6 {[%clk 0:01:14]} 25. Nc7 {[%clk 0:01:10]}  Rb6 {[%clk 0:01:06]} 26. Ne6+ {[%clk 0:01:10]}  Kf7 {[%clk 0:01:06]} 27. Nxf8 {[%clk 0:01:10]}  Kxf8 {[%clk 0:01:04]} 28. b3 {[%clk 0:01:09]}  f4 {[%clk 0:01:00]} 29. h4 {[%clk 0:01:07]}  Nf6 {[%clk 0:00:59]} 30. Kf2 {[%clk 0:01:06]}  Bc8 {[%clk 0:00:59]} 31. g3 {[%clk 0:01:05]}  fxg3+ {[%clk 0:00:58]} 32. Kxg3 {[%clk 0:01:05]}  Kg7 {[%clk 0:00:49]} 33. Rg1 {[%clk 0:01:05]}  Bd7 {[%clk 0:00:49]} 34. Kf2 {[%clk 0:01:05]}  a4 {[%clk 0:00:47]} 35. Ke3 {[%clk 0:01:04]}  Be8 {[%clk 0:00:45]} 36. Rgb1 {[%clk 0:01:00]}  Rb4 {[%clk 0:00:43]} 37. a3 {[%clk 0:00:59]}  Rb8 {[%clk 0:00:42]} 38. bxa4 {[%clk 0:00:57]}  Ra8 {[%clk 0:00:37]} 39. Rb6 {[%clk 0:00:47]}  Rxa4 {[%clk 0:00:33]} 40. Be2 {[%clk 0:00:44]}  g5 {[%clk 0:00:16]} 41. hxg5 {[%clk 0:00:43]}  Nh7 {[%clk 0:00:17]} 42. Rxd6 {[%clk 0:00:41]}  h4 {[%clk 0:00:17]} 43. Re6 {[%clk 0:00:35]}  Bf7 {[%clk 0:00:16]} 44. Rxe5 {[%clk 0:00:35]}  Kg6 {[%clk 0:00:16]} 45. f4 {[%clk 0:00:35]}  h3 {[%clk 0:00:15]} 46. Bg4 {[%clk 0:00:32]}  h2 {[%clk 0:00:15]} 47. Bf5+ {[%clk 0:00:32]}  Kg7 {[%clk 0:00:15]} 48. Rh1 {[%clk 0:00:25]}  Rxa3+ {[%clk 0:00:16]} 49. Kf2 {[%clk 0:00:26]}  Ra2+ {[%clk 0:00:16]} 50. Kg3 {[%clk 0:00:26]}  Nf8 {[%clk 0:00:14]} 51. Rxh2 {[%clk 0:00:25]}  Ra3+ {[%clk 0:00:15]} 52. Kg4 {[%clk 0:00:24]}  Ra1 {[%clk 0:00:16]} 53. Re7 {[%clk 0:00:22]}  Rg1+ {[%clk 0:00:16]} 54. Kf3 {[%clk 0:00:22]}  Rf1+ {[%clk 0:00:16]} 55. Rf2 {[%clk 0:00:22]}  Rg1 {[%clk 0:00:14]} 56. e5 {[%clk 0:00:21]}  Kg8 {[%clk 0:00:14]} 57. d6 {[%clk 0:00:19]}  Bd5+ {[%clk 0:00:11]} 58. Ke2 {[%clk 0:00:19]}  Bc6 {[%clk 0:00:12]} 59. d7 {[%clk 0:00:17]}  Bb5+ {[%clk 0:00:12]} 60. Kd2 {[%clk 0:00:17]}  Ba4 {[%clk 0:00:11]} 61. e6 {[%clk 0:00:12]}  Rd1+ {[%clk 0:00:11]} 62. Ke2 {[%clk 0:00:12]}  Rd6 {[%clk 0:00:11]} 63. Re8 {[%clk 0:00:11]}  Bb5+ {[%clk 0:00:08]} 64. Ke3 {[%clk 0:00:12]}  Kg7 {[%clk 0:00:08]} 65. Rxf8 {[%clk 0:00:11]}  Kxf8 {[%clk 0:00:07]} 66. Rh2 {[%clk 0:00:11]}  Ke7 {[%clk 0:00:06]} 67. Rh7+ {[%clk 0:00:11]}  Kd8 {[%clk 0:00:06]} 68. Rh8+ {[%clk 0:00:11]}  Kc7 {[%clk 0:00:07]} 69. d8=Q+ {[%clk 0:00:10]}  Rxd8 {[%clk 0:00:06]} 70. Rxd8 {[%clk 0:00:10]}  Kxd8 {[%clk 0:00:07]} 71. Ke4 {[%clk 0:00:11]}  Bc6+ {[%clk 0:00:05]} 72. Ke5 {[%clk 0:00:11]}  Ke7 {[%clk 0:00:05]} 73. Bc2 {[%clk 0:00:11]}  Ba4 {[%clk 0:00:02]} 74. Bxa4 {[%clk 0:00:10]}  c4 {[%clk 0:00:02]} 75. f5 {[%clk 0:00:10]}  c3 {[%clk 0:00:03]} 76. f6+ {[%clk 0:00:10]}  Kf8 {[%clk 0:00:04]} 77. Bc2 {[%clk 0:00:10]}  Kg8 {[%clk 0:00:04]} 78. e7 {[%clk 0:00:10]}  Kf7 {[%clk 0:00:04]} 79. Kd6 {[%clk 0:00:10]}  Ke8 {[%clk 0:00:05]} 80. Bg6# {[%clk 0:00:09]} 1-0


[Site "https://www.chess.com"]

[Event "Titled Tuesday Blitz December 27 Early 2022"]
[White "Sadovsky, Artem"]
[Black "Araujo, Everson De Moura"]
[WhiteFideId "4155840"]
[BlackFideId "22737197"]
[WhiteElo "2276"]
[BlackElo "1944"]
[Result "1-0"]
[Round "02"]
[TimeControl "180+2"]
[Date "2022.12.27"]
[WhiteClock "0:02:19"]
[BlackClock "0:02:03"]

1. Nf3 {[%clk 0:03:00]}  Nf6 {[%clk 0:02:59]} 2. e3 {[%clk 0:03:01]}  d5 {[%clk 0:02:59]} 3. c4 {[%clk 0:03:01]}  e6 {[%clk 0:02:59]} 4. b3 {[%clk 0:03:00]}  Bd6 {[%clk 0:02:50]} 5. Bb2 {[%clk 0:03:01]}  O-O {[%clk 0:02:50]} 6. Be2 {[%clk 0:02:58]}  c5 {[%clk 0:02:49]} 7. O-O {[%clk 0:02:59]}  Nc6 {[%clk 0:02:47]} 8. cxd5 {[%clk 0:02:59]}  exd5 {[%clk 0:02:47]} 9. d4 {[%clk 0:02:59]}  b6 {[%clk 0:02:45]} 10. dxc5 {[%clk 0:02:58]}  bxc5 {[%clk 0:02:44]} 11. Nc3 {[%clk 0:02:55]}  Be6 {[%clk 0:02:37]} 12. Rc1 {[%clk 0:02:45]}  a6 {[%clk 0:02:36]} 13. Na4 {[%clk 0:02:44]}  Qe7 {[%clk 0:02:34]} 14. Bxf6 {[%clk 0:02:37]}  gxf6 {[%clk 0:02:35]} 15. Nxc5 {[%clk 0:02:29]}  Bxc5 {[%clk 0:02:29]} 16. Qc2 {[%clk 0:02:29]}  Rac8 {[%clk 0:02:02]} 17. Qxc5 {[%clk 0:02:22]}  Qxc5 {[%clk 0:02:03]} 18. Rxc5 {[%clk 0:02:22]}  Nd4 {[%clk 0:02:03]} 19. exd4 {[%clk 0:02:19]} 1-0


[Site "https://www.chess.com"]

[Event "Titled Tuesday Blitz December 27 Early 2022"]
[White "Sai Krishna G V"]
[Black "Guha, Eshan"]
[WhiteFideId "5028280"]
[BlackFideId "30958628"]
[WhiteElo "2384"]
[BlackElo "2071"]
[Result "1-0"]
[Round "02"]
[TimeControl "180+2"]
[Date "2022.12.27"]
[WhiteClock "0:01:07"]
[BlackClock "0:00:23"]

1. e4 {[%clk 0:02:56]}  c5 {[%clk 0:02:59]} 2. Nf3 {[%clk 0:02:42]}  d6 {[%clk 0:02:59]} 3. b3 {[%clk 0:02:34]}  Nf6 {[%clk 0:02:58]} 4. Qe2 {[%clk 0:02:31]}  g6 {[%clk 0:02:57]} 5. Bb2 {[%clk 0:02:32]}  Bg7 {[%clk 0:02:58]} 6. g3 {[%clk 0:02:32]}  O-O {[%clk 0:02:58]} 7. Bg2 {[%clk 0:02:33]}  Nc6 {[%clk 0:02:58]} 8. O-O {[%clk 0:02:33]}  Bg4 {[%clk 0:02:54]} 9. d3 {[%clk 0:02:31]}  Nd7 {[%clk 0:02:48]} 10. Bxg7 {[%clk 0:02:29]}  Kxg7 {[%clk 0:02:49]} 11. Qe3 {[%clk 0:02:30]}  Bxf3 {[%clk 0:02:42]} 12. Bxf3 {[%clk 0:02:30]}  Nd4 {[%clk 0:02:41]} 13. Bd1 {[%clk 0:02:30]}  b5 {[%clk 0:02:33]} 14. c3 {[%clk 0:02:30]}  Nc6 {[%clk 0:02:32]} 15. f4 {[%clk 0:02:23]}  e5 {[%clk 0:02:31]} 16. f5 {[%clk 0:02:23]}  f6 {[%clk 0:02:28]} 17. g4 {[%clk 0:02:20]}  g5 {[%clk 0:02:28]} 18. h4 {[%clk 0:02:21]}  h6 {[%clk 0:02:28]} 19. Nd2 {[%clk 0:02:16]}  Qe7 {[%clk 0:02:28]} 20. Nf3 {[%clk 0:02:16]}  b4 {[%clk 0:02:21]} 21. cxb4 {[%clk 0:02:15]}  Nxb4 {[%clk 0:02:16]} 22. Kf2 {[%clk 0:02:08]}  Rh8 {[%clk 0:02:14]} 23. Rh1 {[%clk 0:02:08]}  Nc6 {[%clk 0:02:05]} 24. Be2 {[%clk 0:02:01]}  Nd4 {[%clk 0:02:05]} 25. Rag1 {[%clk 0:02:01]}  Nxf3 {[%clk 0:02:04]} 26. Bxf3 {[%clk 0:01:56]}  Nb8 {[%clk 0:02:04]} 27. Rh3 {[%clk 0:01:56]}  Nc6 {[%clk 0:02:02]} 28. Rgh1 {[%clk 0:01:56]}  Nd4 {[%clk 0:01:58]} 29. Bd1 {[%clk 0:01:56]}  a5 {[%clk 0:01:53]} 30. Qc1 {[%clk 0:01:47]}  Qf7 {[%clk 0:01:45]} 31. Qa3 {[%clk 0:01:44]}  Qb7 {[%clk 0:01:42]} 32. R1h2 {[%clk 0:01:30]}  Qb4 {[%clk 0:01:39]} 33. Qc1 {[%clk 0:01:29]}  Qb5 {[%clk 0:01:35]} 34. Be2 {[%clk 0:01:23]}  a4 {[%clk 0:01:26]} 35. hxg5 {[%clk 0:01:21]}  hxg5 {[%clk 0:01:24]} 36. Qh1 {[%clk 0:01:15]}  Rhg8 {[%clk 0:00:52]} 37. Rh7+ {[%clk 0:01:11]}  Kf8 {[%clk 0:00:53]} 38. R2h6 {[%clk 0:01:11]}  axb3 {[%clk 0:00:23]} 39. Qh5 {[%clk 0:01:07]} 1-0


[Site "https://www.chess.com"]

[Event "Titled Tuesday Blitz December 27 Early 2022"]
[White "Salimova, Nurgyul"]
[Black "Manon-og, Ramon Jr."]
[WhiteFideId "2915138"]
[BlackFideId "5200776"]
[WhiteElo "2391"]
[BlackElo "1999"]
[Result "1-0"]
[Round "02"]
[TimeControl "180+2"]
[Date "2022.12.27"]
[WhiteClock "0:02:14"]
[BlackClock "0:01:20"]

1. d4 {[%clk 0:03:00]}  d5 {[%clk 0:02:57]} 2. Nf3 {[%clk 0:03:00]}  e6 {[%clk 0:02:57]} 3. c4 {[%clk 0:02:59]}  c5 {[%clk 0:02:57]} 4. cxd5 {[%clk 0:02:57]}  exd5 {[%clk 0:02:55]} 5. g3 {[%clk 0:02:57]}  Nf6 {[%clk 0:02:54]} 6. Bg2 {[%clk 0:02:57]}  Nc6 {[%clk 0:02:52]} 7. O-O {[%clk 0:02:57]}  Bd6 {[%clk 0:02:49]} 8. dxc5 {[%clk 0:02:56]}  Bxc5 {[%clk 0:02:48]} 9. a3 {[%clk 0:02:56]}  O-O {[%clk 0:02:45]} 10. b4 {[%clk 0:02:54]}  Bd6 {[%clk 0:02:43]} 11. Bb2 {[%clk 0:02:47]}  Bf5 {[%clk 0:02:39]} 12. Nc3 {[%clk 0:02:44]}  d4 {[%clk 0:02:35]} 13. Nxd4 {[%clk 0:02:34]}  Nxd4 {[%clk 0:02:32]} 14. Qxd4 {[%clk 0:02:34]}  Bc7 {[%clk 0:02:31]} 15. Nb5 {[%clk 0:02:28]}  Qxd4 {[%clk 0:02:28]} 16. Bxd4 {[%clk 0:02:28]}  a6 {[%clk 0:02:25]} 17. Nxc7 {[%clk 0:02:27]}  Rac8 {[%clk 0:02:24]} 18. Bxf6 {[%clk 0:02:26]}  gxf6 {[%clk 0:02:14]} 19. Nd5 {[%clk 0:02:26]}  Rcd8 {[%clk 0:02:10]} 20. Ne7+ {[%clk 0:02:25]}  Kg7 {[%clk 0:02:08]} 21. Nxf5+ {[%clk 0:02:26]}  Kg6 {[%clk 0:02:03]} 22. Nh4+ {[%clk 0:02:26]}  Kg7 {[%clk 0:02:02]} 23. Bxb7 {[%clk 0:02:24]}  Rd6 {[%clk 0:01:55]} 24. Nf5+ {[%clk 0:02:24]}  Kg6 {[%clk 0:01:50]} 25. Nxd6 {[%clk 0:02:23]}  Rd8 {[%clk 0:01:49]} 26. Nxf7 {[%clk 0:02:21]}  Rd7 {[%clk 0:01:48]} 27. Bxa6 {[%clk 0:02:20]}  Rxf7 {[%clk 0:01:48]} 28. Bd3+ {[%clk 0:02:19]}  Kg7 {[%clk 0:01:45]} 29. b5 {[%clk 0:02:20]}  Rb7 {[%clk 0:01:44]} 30. a4 {[%clk 0:02:21]}  Rb6 {[%clk 0:01:43]} 31. a5 {[%clk 0:02:21]}  Rb8 {[%clk 0:01:42]} 32. a6 {[%clk 0:02:21]}  Re8 {[%clk 0:01:41]} 33. a7 {[%clk 0:02:21]}  Rd8 {[%clk 0:01:40]} 34. a8=Q {[%clk 0:02:21]}  Rxa8 {[%clk 0:01:38]} 35. Rxa8 {[%clk 0:02:22]}  h6 {[%clk 0:01:37]} 36. b6 {[%clk 0:02:22]}  h5 {[%clk 0:01:37]} 37. b7 {[%clk 0:02:22]}  h4 {[%clk 0:01:37]} 38. b8=Q {[%clk 0:02:22]}  hxg3 {[%clk 0:01:38]} 39. hxg3 {[%clk 0:02:22]}  f5 {[%clk 0:01:37]} 40. e4 {[%clk 0:02:21]}  f4 {[%clk 0:01:36]} 41. gxf4 {[%clk 0:02:21]}  Kf6 {[%clk 0:01:35]} 42. e5+ {[%clk 0:02:21]}  Ke7 {[%clk 0:01:35]} 43. f5 {[%clk 0:02:21]}  Kf7 {[%clk 0:01:35]} 44. e6+ {[%clk 0:02:21]}  Ke7 {[%clk 0:01:35]} 45. f6+ {[%clk 0:02:21]}  Kxe6 {[%clk 0:01:33]} 46. f7 {[%clk 0:02:20]}  Ke7 {[%clk 0:01:34]} 47. f8=Q+ {[%clk 0:02:20]}  Ke6 {[%clk 0:01:33]} 48. f4 {[%clk 0:02:19]}  Kd7 {[%clk 0:01:30]} 49. f5 {[%clk 0:02:18]}  Kc6 {[%clk 0:01:29]} 50. f6 {[%clk 0:02:18]}  Kd5 {[%clk 0:01:26]} 51. f7 {[%clk 0:02:18]}  Kc6 {[%clk 0:01:25]} 52. Qfe8+ {[%clk 0:02:18]}  Kc5 {[%clk 0:01:23]} 53. f8=Q+ {[%clk 0:02:17]}  Kd5 {[%clk 0:01:21]} 54. Qee5+ {[%clk 0:02:15]}  Kc6 {[%clk 0:01:20]} 55. Qfd6# {[%clk 0:02:14]} 1-0


[Site "https://www.chess.com"]

[Event "Titled Tuesday Blitz December 27 Early 2022"]
[White "Samsonkin, Artiom"]
[Black "Legenia, Artem"]
[WhiteFideId "13503111"]
[BlackFideId "14136945"]
[WhiteElo "2420"]
[BlackElo "2092"]
[Result "0-1"]
[Round "02"]
[TimeControl "180+2"]
[Date "2022.12.27"]
[WhiteClock "0:00:02"]
[BlackClock "0:00:59"]

1. d4 {[%clk 0:02:59]}  d5 {[%clk 0:02:56]} 2. Bf4 {[%clk 0:02:59]}  Nf6 {[%clk 0:02:53]} 3. e3 {[%clk 0:02:59]}  Bf5 {[%clk 0:02:52]} 4. c4 {[%clk 0:02:58]}  e6 {[%clk 0:02:51]} 5. Qb3 {[%clk 0:02:57]}  Qc8 {[%clk 0:02:49]} 6. Nc3 {[%clk 0:02:57]}  c6 {[%clk 0:02:49]} 7. Rc1 {[%clk 0:02:56]}  a6 {[%clk 0:02:40]} 8. h3 {[%clk 0:02:36]}  h6 {[%clk 0:02:39]} 9. g4 {[%clk 0:02:34]}  Bh7 {[%clk 0:02:38]} 10. Bg2 {[%clk 0:02:34]}  Nbd7 {[%clk 0:02:38]} 11. cxd5 {[%clk 0:02:32]}  cxd5 {[%clk 0:02:35]} 12. Nge2 {[%clk 0:02:32]}  Qd8 {[%clk 0:01:39]} 13. Qxb7 {[%clk 0:02:30]}  Be7 {[%clk 0:01:39]} 14. O-O {[%clk 0:01:59]}  O-O {[%clk 0:01:39]} 15. Bc7 {[%clk 0:01:48]}  Qc8 {[%clk 0:01:39]} 16. Qxc8 {[%clk 0:01:46]}  Rfxc8 {[%clk 0:01:39]} 17. Bg3 {[%clk 0:01:43]}  Nb6 {[%clk 0:01:33]} 18. Rfd1 {[%clk 0:01:24]}  a5 {[%clk 0:01:33]} 19. Nb5 {[%clk 0:01:19]}  a4 {[%clk 0:01:33]} 20. b3 {[%clk 0:01:06]}  axb3 {[%clk 0:01:32]} 21. axb3 {[%clk 0:01:06]}  Ne4 {[%clk 0:01:32]} 22. Bc7 {[%clk 0:00:57]}  Nd7 {[%clk 0:01:29]} 23. f3 {[%clk 0:00:57]}  Nef6 {[%clk 0:01:28]} 24. Nf4 {[%clk 0:00:40]}  Ne8 {[%clk 0:01:19]} 25. Ne2 {[%clk 0:00:29]}  Nxc7 {[%clk 0:01:17]} 26. Rxc7 {[%clk 0:00:27]}  Rxc7 {[%clk 0:01:16]} 27. Nxc7 {[%clk 0:00:28]}  Rb8 {[%clk 0:01:14]} 28. Nc1 {[%clk 0:00:17]}  Ba3 {[%clk 0:01:07]} 29. Na6 {[%clk 0:00:15]}  Rb6 {[%clk 0:01:01]} 30. Nc7 {[%clk 0:00:11]}  Rc6 {[%clk 0:01:00]} 31. Nd3 {[%clk 0:00:01]}  Rxc7 {[%clk 0:01:00]} 32. Ra1 {[%clk 0:00:02]}  Bf8 {[%clk 0:00:59]} 0-1


[Site "https://www.chess.com"]